[Event "44th Chess Olympiad Open 2022"]
[Site "Chennai"]
[Date "2022.07.30"]
[Round "2.9"]
[White "Koykka, Pekka"]
[Black "Kollars, Dmitrij"]
[Result "0-1"]
[WhiteElo "2361"]
[BlackElo "2648"]
[Annotator "TA"]
[PlyCount "92"]
[EventDate "2022.??.??"]
[TimeControl "60"]

{[%evp 16,92,8,0,23,-8,0,0,12,-15,0,-22,-15,-22,0,-24,-16,-16,-10,-11,-8,-5,-6,
-11,-6,-14,0,0,0,-23,-45,-45,-45,-44,-47,-56,-33,-127,-119,-68,-78,-117,-125,
-102,-97,-185,-175,-273,-273,-273,-271,-268,-227,-214,-214,-270,-281,-381,-355,
-300,-333,-625,-602,-587,-587,-917,-885,-875,-785,-709,-679,-12843,-12747,
-6127,-11669,-5089,-10668,-4640,-4578]} 1. Nf3 {[%emt 0:00:05]} d5 {[%emt 0:00:
00]} 2. e3 {[%emt 0:00:16]} Nf6 {[%emt 0:00:24]} 3. c4 {[%emt 0:00:08]} e6 {
[%emt 0:00:13]} 4. Nc3 {[%emt 0:00:19]} Be7 {[%emt 0:00:34]} 5. b3 {[%emt 0:00:
00]} O-O {[%emt 0:00:34]} 6. Bb2 {[%emt 0:00:11]} c5 {[%emt 0:00:39]} 7. cxd5 {
[%emt 0:03:04]} Nxd5 {[%emt 0:00:15]} 8. Be2 {[%emt 0:15:21]} Nc6 {[%emt 0:00:
00]} 9. O-O {[%emt 0:00:34]} e5 $5 {[%emt 0:04:57] Exploring less charted
territory. A13: English Opening: 1...e6.} 10. Rc1 {[%emt 0:07:31] [#]} Nxc3
$146 {[%emt 0:06:56]} ({Predecessor:} 10... f6 11. Nxd5 e4 12. Nxe7+ Qxe7 13.
Ne1 Rd8 14. d3 exd3 15. Nxd3 Bf5 16. Qc2 Nb4 {1-0 (54) Yu,J (2316)
-Pourkashiyan,A (2322) Chess.com INT 2021}) 11. Bxc3 {[%emt 0:05:38]} Qd6 {
[%emt 0:05:14] The position is equal.} 12. d4 {[%emt 0:07:47]} e4 {[%emt 0:00:
00]} (12... cxd4 {is more complex.} 13. exd4 e4 14. Nd2 Nxd4 15. Bc4 Bf5) 13.
Ne5 {[%emt 0:02:12]} Nxe5 {[%emt 0:00:44]} 14. dxe5 {[%emt 0:00:07]} Qg6 {
[%emt 0:00:10]} 15. Kh1 {[%emt 0:03:03]} Rd8 {[%emt 0:05:48]} 16. Qc2 {[%emt 0:
00:00]} Bg4 {[%emt 0:01:46]} 17. f3 {[%emt 0:12:16]} exf3 {[%emt 0:10:25]} 18.
Qxg6 {[%emt 0:00:50]} hxg6 {[%emt 0:00:08]} 19. gxf3 {[%emt 0:00:38]} Be6 {
[%emt 0:00:11]} 20. Kg2 {[%emt 0:01:36]} a6 {[%emt 0:08:35]} 21. f4 {[%emt 0:
00:00]} b5 {[%emt 0:07:40][%cal Yb7b5,Yb5b4]} 22. Rfd1 {[%emt 0:07:04]} Rxd1 {
[%emt 0:09:08]} 23. Rxd1 {[%emt 0:00:36]} b4 {[%emt 0:00:22]} 24. Be1 {[%emt 0:
05:10]} a5 {[%emt 0:00:09][%cal Ya6a5,Ya5a4,Ya4b3,Yb3b2]} 25. Bb5 {[%emt 0:02:
18]} Rb8 {[%emt 0:01:24]} (25... a4 $5 {[%cal Ra4b3]} 26. Bc6 Ra7 27. Bxa4 c4
$15) 26. Bc4 {[%emt 0:03:05]} (26. Ba4 $1 $15) 26... Bxc4 $17 {[%emt 0:05:58]}
27. bxc4 {[%emt 0:00:01] Endgame KRB-KRB} a4 {[%emt 0:00:29]} 28. Kf3 {[%emt 0:
00:31] [#]} f6 $1 {[%emt 0:02:16]} 29. Rd7 {[%emt 0:03:49]} Kf7 {[%emt 0:01:38]
} 30. exf6 {[%emt 0:04:09]} (30. Ra7 $17 {keeps fighting.}) 30... gxf6 $19 {
[%emt 0:00:04]} 31. e4 {[%emt 0:00:15]} (31. Ke2 {is a better defense.}) 31...
b3 {[%emt 0:04:15]} 32. axb3 {[%emt 0:00:05]} axb3 {[%emt 0:00:05]} 33. Rd1 {
[%emt 0:00:06]} f5 {[%emt 0:01:34]} 34. Rb1 {[%emt 0:00:51]} b2 {[%emt 0:01:18]
} 35. e5 {[%emt 0:00:43]} g5 {[%emt 0:01:21] Prevents h4.} 36. Bd2 {[%emt 0:01:
38]} Kg6 {[%emt 0:03:57] And now ...gxf4 would win.} 37. Ke2 {[%emt 0:01:08]}
gxf4 {[%emt 0:00:46]} 38. Bxf4 {[%emt 0:00:00]} (38. Be1) 38... Bg5 {[%emt 0:
01:15] Black is clearly winning.} 39. Bg3 {[%emt 0:00:21]} Bc1 {[%emt 0:01:10]}
40. Kd3 {[%emt 0:01:41]} Rb3+ {[%emt 0:00:00]} 41. Kc2 {[%emt 0:05:14]} Rf3 {
[%emt 0:00:41] [#] Threatens to win with ...f4.} 42. e6 {[%emt 0:05:09]} f4 {
[%emt 0:03:26]} 43. Bh4 {[%emt 0:00:37]} Re3 {[%emt 0:01:47]} 44. e7 {[%emt 0:
02:39]} f3 {[%emt 0:00:51]} (44... Re2+ $142 45. Kd3 Re3+ 46. Kc2 f3) 45. Bf2 {
[%emt 0:03:04]} Rxe7 {[%emt 0:00:25] ( -> ...Re2+)} 46. Bxc5 {[%emt 0:00:20]}
f2 {[%emt 0:00:25] Weighted Error Value: White=0.59/Black=0.04 (flawless)} 0-1

[Event "44th Chess Olympiad Open 2022"]
[Site "Chennai"]
[Date "2022.07.30"]
[Round "2.10"]
[White "Howell, David W L"]
[Black "Goh, Wei Ming Kevin"]
[Result "1-0"]
[WhiteElo "2650"]
[BlackElo "2453"]
[Annotator "ChessBase"]
[PlyCount "127"]
[EventDate "2022.??.??"]
[TimeControl "60"]

1. Nf3 {[%emt 0:00:30]} c5 {[%emt 0:00:50]} 2. c4 {[%emt 0:02:00]} Nc6 {
[%emt 0:00:20]} 3. Nc3 {[%emt 0:01:48]} g6 {[%emt 0:00:53]} 4. e3 {[%emt 0:00:
00]} Nf6 {[%emt 0:00:20]} 5. d4 {[%emt 0:00:33]} cxd4 {[%emt 0:00:13]} 6. exd4
{[%emt 0:00:20]} d5 {[%emt 0:00:05]} 7. cxd5 {[%emt 0:01:25]} Nxd5 {[%emt 0:00:
00]} 8. Qb3 {[%emt 0:00:47]} Nxc3 {[%emt 0:00:56]} 9. Bc4 {[%emt 0:00:29]} Nd5
{[%emt 0:00:07]} 10. Bxd5 {[%emt 0:00:08]} e6 {[%emt 0:00:03]} 11. Bxc6+ {
[%emt 0:00:40]} bxc6 {[%emt 0:00:04]} 12. O-O {[%emt 0:00:33]} Qd5 {[%emt 0:00:
00]} 13. Bg5 {[%emt 0:03:32]} Bg7 {[%emt 0:12:56]} 14. Rfc1 {[%emt 0:19:01]} f6
{[%emt 0:29:03]} 15. Be3 {[%emt 0:05:52]} Bf8 {[%emt 0:13:51]} 16. Nd2 {
[%emt 0:06:33]} Be7 {[%emt 0:03:05]} 17. Rc3 {[%emt 0:05:58]} Bd7 {[%emt 0:00:
00]} 18. Qc2 {[%emt 0:01:51]} Kf7 {[%emt 0:03:23]} 19. Ne4 {[%emt 0:08:45]}
Rhb8 {[%emt 0:04:24]} 20. b3 {[%emt 0:05:22]} Be8 {[%emt 0:02:29]} 21. f3 {
[%emt 0:10:40]} a5 {[%emt 0:02:49]} 22. Nc5 {[%emt 0:00:26]} Rb5 {[%emt 0:00:
00]} 23. Rd1 {[%emt 0:04:43]} Rd8 {[%emt 0:00:38]} 24. Rcd3 {[%emt 0:00:38]} g5
{[%emt 0:04:54]} 25. Bf2 {[%emt 0:06:42]} Kg7 {[%emt 0:03:16]} 26. Qe2 {
[%emt 0:02:59]} Bf7 {[%emt 0:00:02]} 27. h3 {[%emt 0:00:23]} Bf8 {[%emt 0:00:
00]} 28. Kh1 {[%emt 0:01:31]} Qf5 {[%emt 0:01:06]} 29. Na4 {[%emt 0:04:20]} Bd6
{[%emt 0:01:37]} 30. Nc3 {[%emt 0:00:48]} Rb7 {[%emt 0:00:21]} 31. Ne4 {
[%emt 0:00:24]} Bf8 {[%emt 0:00:50]} 32. Rc3 {[%emt 0:00:59]} Qd5 {[%emt 0:00:
00]} 33. Rdc1 {[%emt 0:03:21]} Rb6 {[%emt 0:01:02]} 34. Rc4 {[%emt 0:01:12]}
Qb5 {[%emt 0:00:44]} 35. Nc3 {[%emt 0:00:33]} Qa6 {[%emt 0:00:07]} 36. Qc2 {
[%emt 0:00:33]} Rb4 {[%emt 0:00:36]} 37. Rxb4 {[%emt 0:00:21]} axb4 {[%emt 0:
00:00]} 38. Na4 {[%emt 0:00:06]} Rc8 {[%emt 0:01:08]} 39. Qe4 {[%emt 0:00:38]}
Qb5 {[%emt 0:00:15]} 40. Bg3 {[%emt 0:00:55]} Rd8 {[%emt 0:00:42]} 41. Bc7 {
[%emt 0:16:37]} Rd5 {[%emt 0:19:01]} 42. Nb6 {[%emt 0:06:46]} Bd6 {[%emt 0:00:
00]} 43. Bxd6 {[%emt 0:01:25]} Qxb6 {[%emt 0:00:39]} 44. Bc5 {[%emt 0:00:08]}
Qa6 {[%emt 0:00:41]} 45. Qc2 {[%emt 0:01:59]} Rd8 {[%emt 0:04:01]} 46. Qd2 {
[%emt 0:04:18]} Qa3 {[%emt 0:05:28]} 47. Rc2 {[%emt 0:02:07]} Rb8 {[%emt 0:00:
00]} 48. Qe1 {[%emt 0:00:15]} Qa5 {[%emt 0:00:45]} 49. Kg1 {[%emt 0:00:48]} Qb5
{[%emt 0:00:23]} 50. Rc4 {[%emt 0:00:36]} Qa6 {[%emt 0:00:59]} 51. Rc2 {
[%emt 0:00:28]} Qb5 {[%emt 0:00:07]} 52. Qd2 {[%emt 0:00:09]} Qa5 {[%emt 0:00:
00]} 53. a4 {[%emt 0:00:33]} Qd8 {[%emt 0:01:22]} 54. Qe3 {[%emt 0:00:52]} Qd5
{[%emt 0:01:34]} 55. a5 {[%emt 0:00:26]} Ra8 {[%emt 0:01:19]} 56. Bxb4 {
[%emt 0:00:26]} Qb5 {[%emt 0:00:33]} 57. Be1 {[%emt 0:00:31]} Ra6 {[%emt 0:00:
00]} 58. Rc5 {[%emt 0:00:18]} Qb7 {[%emt 0:00:03]} 59. b4 {[%emt 0:00:11]} Ra8
{[%emt 0:00:33]} 60. Qc3 {[%emt 0:00:43]} Ra6 {[%emt 0:00:45]} 61. Qe3 {
[%emt 0:00:46]} h6 {[%emt 0:00:19]} 62. Bc3 {[%emt 0:00:33]} Ra8 {[%emt 0:00:
00]} 63. Qe4 {[%emt 0:00:09]} Ra6 {[%emt 0:00:15]} 64. b5 {[%emt 0:00:12]} 1-0

[Event "44th Chess Olympiad Open 2022"]
[Site "Chennai"]
[Date "2022.07.30"]
[Round "2.10"]
[White "Tin, Jingyao"]
[Black "Adams, Michael"]
[Result "1/2-1/2"]
[WhiteElo "2552"]
[BlackElo "2696"]
[Annotator "TA"]
[PlyCount "99"]
[EventDate "2022.??.??"]
[TimeControl "60"]

{[%evp 17,99,20,22,21,22,20,32,47,42,35,39,36,41,35,47,34,30,27,34,37,74,31,37,
20,16,8,9,9,14,0,0,0,0,0,0,0,0,0,0,0,0,0,0,0,0,0,0,0,0,0,0,0,0,0,0,0,0,0,0,0,0,
0,0,0,0,0,0,0,0,0,0,0,0,0,0,0,0,0,0,0,0,0,0,0]} 1. d4 {[%emt 0:00:05]} Nf6 {
[%emt 0:00:07]} 2. c4 {[%emt 0:00:07]} e6 {[%emt 0:00:06]} 3. Nc3 {[%emt 0:00:
00]} Bb4 {[%emt 0:00:08]} 4. Qc2 {[%emt 0:00:17]} d5 {[%emt 0:00:09]} 5. a3 {
[%emt 0:00:46]} Bxc3+ {[%emt 0:00:11]} 6. Qxc3 {[%emt 0:00:07]} O-O {[%emt 0:
00:00]} 7. Nf3 {[%emt 0:01:49]} Ne4 {[%emt 0:04:24]} 8. Qc2 {[%emt 0:01:16]} b6
{[%emt 0:00:09]} 9. e3 {[%emt 0:10:11]} Bb7 {[%emt 0:04:35]} 10. Bd3 {[%emt 0:
00:00] [#] E37: Nimzo-Indian: Classical: 4...d5 5 a3 Bxc3+ 6 Qxc3 Ne4.} f5 $146
{[%emt 0:11:16]} ({Predecessor:} 10... Nd7 11. cxd5 exd5 12. O-O c5 13. dxc5
Ndxc5 14. b4 Nxd3 15. Qxd3 Rc8 16. Bb2 Qe7 17. Rac1 Nd6 {½-½ (40) Urkedal,F 
(2572)-Anand,V (2767) Chess.com INT 2018}) 11. Ne5 {[%emt 0:09:09]} Nc6 {
[%emt 0:03:20]} 12. Nxc6 {[%emt 0:04:42] White is slightly better.} Bxc6 {
[%emt 0:00:02]} 13. O-O {[%emt 0:00:54]} dxc4 {[%emt 0:02:14]} 14. Bxc4 {
[%emt 0:01:36]} Bd5 {[%emt 0:00:20]} 15. f3 {[%emt 0:04:56]} Nd6 {[%emt 0:00:
00]} 16. Bd3 {[%emt 0:06:12]} c5 {[%emt 0:15:09]} 17. dxc5 {[%emt 0:09:51]} Rc8
{[%emt 0:06:37]} 18. Bd2 {[%emt 0:04:35]} Nb7 {[%emt 0:09:18]} 19. Ba6 {
[%emt 0:13:24]} (19. b4 $5 {[%cal Re3e4]}) 19... Rxc5 {[%emt 0:04:06]} 20. Qd3
{[%emt 0:03:16] Hoping for Bb4.} (20. Bc3 $5 {[%cal Re3e4]}) 20... Rc7 {
[%emt 0:02:30] [#] Threatens to win with ...Nc5. The position is equal.} 21.
Bb4 {[%emt 0:06:54] This bishop pair is nice.} Nc5 {[%emt 0:01:33]} 22. Bxc5 {
[%emt 0:00:15]} bxc5 {[%emt 0:09:16]} 23. Bc4 {[%emt 0:02:03]} Rd7 {[%emt 0:00:
00]} 24. Rac1 {[%emt 0:04:10]} Qg5 {[%emt 0:07:07]} 25. e4 {[%emt 0:06:12]}
fxe4 {[%emt 0:03:04]} 26. fxe4 {[%emt 0:00:42]} Bxc4 {[%emt 0:00:34]} 27. Rxf8+
{[%emt 0:02:23]} Kxf8 {[%emt 0:00:01]} 28. Qxc4 $11 {[%emt 0:00:13] Endgame
KQR-KQR} Qe3+ {[%emt 0:02:17]} 29. Kh1 {[%emt 0:00:07]} Qd4 {[%emt 0:00:00] [#]
( -> ...Qxc4)} 30. h3 {[%emt 0:04:04]} Qxc4 {[%emt 0:01:25]} 31. Rxc4 {[%emt 0:
00:04] KR-KR} Rb7 {[%emt 0:00:20]} 32. Rxc5 {[%emt 0:00:20]} Rxb2 {[%emt 0:00:
04]} 33. Rc8+ {[%emt 0:00:09]} Kf7 {[%emt 0:00:07]} 34. Rc7+ {[%emt 0:00:03]}
Kf6 {[%emt 0:00:05]} 35. Rxa7 {[%emt 0:00:24]} Re2 {[%emt 0:00:00]} 36. Ra4 {
[%emt 0:00:26]} h5 {[%emt 0:00:14]} 37. h4 {[%emt 0:02:30]} g5 {[%emt 0:01:23]}
38. hxg5+ {[%emt 0:01:19]} Kxg5 {[%emt 0:00:07]} 39. Kh2 {[%emt 0:00:53]} e5 {
[%emt 0:01:40]} 40. Rb4 {[%emt 0:00:27]} h4 {[%emt 0:02:11]} 41. a4 {[%emt 0:
04:39]} Ra2 {[%emt 0:01:45]} 42. Rb5 {[%emt 0:04:15]} Kf4 {[%emt 0:00:51]} 43.
Rb4 {[%emt 0:00:31]} Ra3 {[%emt 0:00:30]} 44. Rc4 {[%emt 0:00:00]} Rb3 {
[%emt 0:03:25]} 45. Rc8 {[%emt 0:02:32]} Kxe4 {[%emt 0:03:36]} 46. a5 {[%emt 0:
01:35]} Ra3 {[%emt 0:03:58]} 47. Ra8 {[%emt 0:05:33]} Kf5 {[%emt 0:00:00]} 48.
a6 {[%emt 0:00:54]} Kg6 {[%emt 0:00:12]} 49. a7 {[%emt 0:01:16] And now Rg8+
would win.} Kg7 {[%emt 0:00:12] Inhibits Rg8+.} (49... Kf7 $2 50. Rh8 $18) 50.
Re8 {[%emt 0:00:20] Weighted Error Value: White=0.03 (flawless) / Black=0.02 
(flawless)} 1/2-1/2

[Event "44th Chess Olympiad Open 2022"]
[Site "Chennai"]
[Date "2022.07.30"]
[Round "2.10"]
[White "Haria, Ravi"]
[Black "Gong, Qianyun"]
[Result "1-0"]
[WhiteElo "2505"]
[BlackElo "2275"]
[Annotator "TA"]
[PlyCount "100"]
[EventDate "2022.??.??"]
[TimeControl "60"]

{[%evp 15,100,10,15,14,15,15,22,4,4,0,17,0,23,-5,-7,-10,-12,-15,-13,-14,-7,-22,
0,0,0,0,14,0,0,-41,0,-23,-29,-60,-39,-84,-80,-93,0,0,0,-25,-39,-60,-46,-91,-80,
-91,-36,-46,-33,-75,-79,-74,-79,-165,-96,-101,-80,-225,-21,-134,-131,-127,-131,
-127,-72,-72,45,43,28,55,274,260,463,426,353,183,29992,29993,29993,29989,29989,
29981,29980,29977,29987]} 1. e4 {[%emt 0:00:03]} e6 {[%emt 0:00:08]} 2. d4 {
[%emt 0:00:06]} d5 {[%emt 0:00:05]} 3. e5 {[%emt 0:00:18]} c5 {[%emt 0:00:08]}
4. c3 {[%emt 0:00:09]} Nc6 {[%emt 0:00:04]} 5. Nf3 {[%emt 0:00:15]} Nge7 {
[%emt 0:00:13]} 6. Na3 {[%emt 0:02:36]} cxd4 {[%emt 0:00:25]} 7. cxd4 {[%emt 0:
00:00]} Nf5 {[%emt 0:00:17]} 8. Nc2 {[%emt 0:00:07]} Qb6 {[%emt 0:00:23]} 9.
Bd3 {[%emt 0:01:27] 9.Be2 is vanishing. C02: French: Advance Variation.} Bd7 {
[%emt 0:01:13][%cal Rf5d4]} (9... Ncxd4 $2 10. Nfxd4 Nxd4 11. Nxd4 $18) (9...
Nfxd4 $2 10. Ncxd4 Nxd4 11. Nxd4 $18 (11. Qa4+ Nc6 $15)) 10. O-O {[%emt 0:00:
00][%cal Yb2b4]} a5 {[%emt 0:00:48][%cal Rf5d4]} (10... Nfxd4 $2 11. Nfxd4 Nxe5
12. Be2 $18) 11. Kh1 {[%emt 0:05:33] The position is equal.} Rc8 {[%emt 0:00:
00]} (11... Nfxd4 $2 12. Ncxd4 Nxd4 13. Be3 $18) 12. Rb1 {[%emt 0:13:52]} h6 {
[%emt 0:01:45] [#]} (12... Nfxd4 $2 13. Be3 $16) (12... Ncxd4 13. Nfxd4 Nxd4
14. Be3 Rxc2 15. Qxc2 (15. Bxc2 Bc5 $16) 15... Nxc2 16. Bxb6 $16) 13. a3 $146 {
[%emt 0:11:41][%cal Yb2b4]} ({Predecessor:} 13. Bd2 Be7 14. b4 axb4 15. Nxb4
Nxb4 16. Bxb4 Bxb4 17. a3 Qa7 18. Rxb4 Ne7 19. Qb3 {½-½ (34) Efimenko,Z 
(2649)-Lupulescu,C (2630) Germany 2014}) 13... a4 {[%emt 0:18:37]} (13... Nfxd4
$2 14. Be3 $18) (13... Ncxd4 $2 14. Ncxd4 Nxd4 15. Be3 $18) 14. Be2 {[%emt 0:
00:00]} Na5 {[%emt 0:06:21]} 15. Bd2 {[%emt 0:03:07]} Nb3 {[%emt 0:05:52]} 16.
Bc3 {[%emt 0:00:40]} Bb5 {[%emt 0:01:30] Inhibits Qd3.} 17. g3 {[%emt 0:06:31]
[%cal Yg2g3,Yg3g4]} g6 {[%emt 0:21:37]} 18. Kg2 {[%emt 0:01:36]} Bc4 {[%emt 0:
08:42]} 19. Bxc4 {[%emt 0:03:40]} Rxc4 {[%emt 0:09:58]} 20. Qd3 {[%emt 0:00:25]
} Rc6 {[%emt 0:09:13]} 21. g4 {[%emt 0:02:20]} Ne7 {[%emt 0:00:00]} 22. Ng1 {
[%emt 0:01:28]} g5 {[%emt 0:02:59]} 23. Ne2 {[%emt 0:01:41]} h5 {[%emt 0:03:12]
} 24. h3 {[%emt 0:08:57]} Ng6 $1 {[%emt 0:00:18]} 25. f4 {[%emt 0:06:13]} hxg4
{[%emt 0:00:50]} 26. hxg4 {[%emt 0:01:40]} Qd8 {[%emt 0:00:00]} (26... Nxf4+
$17 27. Nxf4 gxf4 28. Rxf4 Qd8) 27. Rh1 {[%emt 0:05:59]} Rg8 {[%emt 0:02:58]} (
27... Nxf4+ $2 28. Nxf4 Rxh1 29. Nxe6 Rxe6 30. Rxh1 $18) 28. Kf2 {[%emt 0:01:
35]} gxf4 {[%emt 0:00:27]} 29. Rh5 {[%emt 0:00:34]} Rc4 {[%emt 0:00:18]} 30.
Rbh1 {[%emt 0:00:24]} Be7 {[%emt 0:00:14]} 31. Ke1 {[%emt 0:00:51]} b5 {
[%emt 0:00:47]} (31... Rf8 $17) 32. Kd1 {[%emt 0:00:44]} Kd7 {[%emt 0:00:53]}
33. Qf3 {[%emt 0:00:35]} Bg5 {[%emt 0:00:31]} 34. Nb4 {[%emt 0:00:40]} Kc8 $36
{[%emt 0:00:57] Black is in control.} 35. Nd3 {[%emt 0:00:14]} (35. Qf2 $17 {
was worth a try.}) 35... Nh4 {[%emt 0:00:39]} ({Black should try} 35... f6 $1
$19 {...fxe5 is the strong threat.} 36. R1h3 fxe5 37. dxe5 Be7) 36. Qf2 $17 {
[%emt 0:00:32][%cal Rh1h4]} f3 {[%emt 0:00:07]} 37. Ng1 {[%emt 0:00:13]} (37.
Nec1 $17 {is the only way for White.}) 37... Ng2 $2 {[%emt 0:00:28]} (37... b4
$1 $19 {[%cal Rb4c3]} 38. Nxb4 Qc7) 38. Nxf3 {[%emt 0:00:15]} (38. Qxf3 $11
Ne3+ 39. Ke2) 38... Ne3+ {[%emt 0:00:03]} 39. Ke2 {[%emt 0:01:09]} Nxg4 {
[%emt 0:00:07]} 40. Qg3 {[%emt 0:01:01] [#]} Be3 {[%emt 0:02:01]} (40... Be7
$142 $1 {[%cal Yb5b4] White must now prevent ...b4!} 41. Qf4 f5 42. exf6 Nxf6)
41. R1h4 {[%emt 0:14:30] [#]} Bxd4 $1 {[%emt 0:10:00]} 42. Rxg4 $14 {[%emt 0:
03:03] The board is on fire.} Rxg4 {[%emt 0:00:07]} 43. Qxg4 {[%emt 0:00:06]}
Bxc3 {[%emt 0:00:07]} (43... Bxe5 $1 $14 44. Qg1 Bxc3 45. bxc3 Kb7) 44. Qg7 $18
{[%emt 0:01:58] aiming for Rh8.} Qd7 $2 {[%emt 0:07:08]} (44... Kb7) 45. Rh8+ {
[%emt 0:05:35]} ({Weaker is} 45. bxc3 Rxc3 46. Rh8+ (46. Rh7 Kb7 $16) 46... Kb7
$18) 45... Kb7 {[%emt 0:00:03] And now ...Nd4+ would win.} 46. Qf8 {[%emt 0:01:
34]} ({Don't take} 46. bxc3 Rxc3 47. Rf8 Rc7 $18) (46. Rf8 $142 Rc7 47. bxc3)
46... d4 $2 {[%emt 0:12:35]} (46... Rc8 $18 47. Qxc8+ Qxc8 48. Rxc8 Kxc8) 47.
Qa8+ {[%emt 0:03:02] White mates.} Kc7 {[%emt 0:00:00]} 48. bxc3 {[%emt 0:00:
54]} dxc3 {[%emt 0:00:26]} 49. Qb8+ {[%emt 0:00:00]} Kc6 {[%emt 0:00:12]} 50.
Rc8+ {[%emt 0:01:23]} Kd5 {[%emt 0:00:26] Weighted Error Value: White=0.21 
(precise) /Black=0.54} 1-0

[Event "44th Chess Olympiad Open 2022"]
[Site "Chennai"]
[Date "2022.07.30"]
[Round "2.10"]
[White "Siddharth, Jagadeesh"]
[Black "Jones, Gawain C B"]
[Result "1/2-1/2"]
[WhiteElo "2426"]
[BlackElo "2652"]
[Annotator "TA"]
[PlyCount "112"]
[EventDate "2022.??.??"]
[TimeControl "60"]

{[%evp 14,112,12,7,26,18,14,12,5,6,19,10,12,6,12,10,7,10,16,7,19,0,0,5,0,0,0,6,
22,10,19,22,9,3,3,7,11,0,0,0,14,0,0,0,0,0,0,0,0,0,0,0,0,0,0,0,0,0,0,0,0,0,0,0,
0,0,0,0,0,0,0,0,0,0,0,0,0,0,0,0,0,0,0,0,0,0,0,0,0,0,0,0,0,0,0,0,0,0,0,0,0]} 1.
d4 {[%emt 0:00:04]} Nf6 {[%emt 0:00:12]} 2. c4 {[%emt 0:00:39]} e6 {[%emt 0:00:
00]} 3. Nf3 {[%emt 0:01:37]} d5 {[%emt 0:00:07]} 4. Nc3 {[%emt 0:00:47]} Nbd7 {
[%emt 0:00:28]} 5. Bg5 {[%emt 0:05:07]} h6 {[%emt 0:00:20]} 6. Bh4 {[%emt 0:00:
00]} Be7 {[%emt 0:00:18]} 7. e3 {[%emt 0:00:07]} O-O {[%emt 0:00:41]} 8. Rc1 {
[%emt 0:00:07]} c5 {[%emt 0:04:29] D63: Queen's Gambit Declined: Classical: 7
Rc1.} 9. cxd5 {[%emt 0:00:41]} (9. dxc5 {keeps more tension.} Nxc5 10. cxd5 g5
11. d6) 9... Nxd5 {[%emt 0:00:28] The position is equal.} 10. Bxe7 {[%emt 0:00:
00]} Nxe7 {[%emt 0:00:24]} 11. Bb5 {[%emt 0:00:50]} cxd4 {[%emt 0:04:35]} 12.
Qxd4 {[%emt 0:00:28] 12.Nxd4 is not played anymore.} Nf6 {[%emt 0:07:01]} 13.
O-O {[%emt 0:02:17]} Qxd4 {[%emt 0:10:54]} 14. Nxd4 {[%emt 0:00:14]} Rd8 {
[%emt 0:01:12]} 15. Rfd1 {[%emt 0:00:47]} Bd7 {[%emt 0:00:52]} 16. Be2 {
[%emt 0:00:08] [#]} Rab8 $146 {[%emt 0:12:26]} ({Predecessor:} 16... Rac8 17.
Nf3 Bc6 18. Nd4 Bd7 19. Nf3 {½-½ (19) Eljanov,P (2707)-Gelfand,B (2719)
Palma de Mallorca 2017}) 17. Bf3 {[%emt 0:06:49]} g5 {[%emt 0:03:43]} 18. h3 {
[%emt 0:03:03]} Kg7 {[%emt 0:08:38]} 19. Ne4 {[%emt 0:07:29]} Nxe4 {[%emt 0:00:
00]} 20. Bxe4 {[%emt 0:00:07]} e5 {[%emt 0:00:15]} 21. Nb3 {[%emt 0:08:35]} (
21. Nf3 {with more complications.} Kf6 22. Rc7 Be6 23. Rxd8 Rxd8 24. Bxb7 Bxa2
25. Nxe5 Kxe5 26. Rxe7+ Kf6 27. Re4) 21... Bc6 {[%emt 0:01:38]} 22. Bxc6 {
[%emt 0:02:57]} Nxc6 {[%emt 0:00:10]} 23. Nc5 {[%emt 0:03:39]} Rxd1+ {[%emt 0:
00:00]} 24. Rxd1 {[%emt 0:00:10]} Rd8 {[%emt 0:00:06] Inhibits Rd6.} 25. Rxd8 {
[%emt 0:02:51]} Nxd8 $11 {[%emt 0:00:08] Endgame KN-KN} 26. g4 {[%emt 0:00:04]}
Kg6 {[%emt 0:01:56]} 27. Kf1 {[%emt 0:04:40]} f5 {[%emt 0:00:00]} 28. gxf5+ {
[%emt 0:05:01]} Kxf5 {[%emt 0:00:07]} 29. f3 {[%emt 0:00:13]} b6 {[%emt 0:07:
17]} 30. Ne4 {[%emt 0:00:10]} Nc6 {[%emt 0:00:48]} 31. Ke2 {[%emt 0:00:18]} Ke6
{[%emt 0:00:54]} 32. a3 {[%emt 0:02:17]} Ne7 {[%emt 0:00:00]} 33. Ng3 {[%emt 0:
01:11]} Nf5 {[%emt 0:02:08]} 34. Ne4 {[%emt 0:02:01]} Nd6 {[%emt 0:05:37] [#] .
..Nxe4 is the strong threat.} 35. Kd3 {[%emt 0:00:53]} Nxe4 {[%emt 0:06:30]}
36. Kxe4 {[%emt 0:00:22] KP-KP} h5 {[%emt 0:03:35]} 37. f4 {[%emt 0:01:27]}
exf4 {[%emt 0:00:49]} 38. exf4 {[%emt 0:00:07]} Kf6 {[%emt 0:01:25]} 39. fxg5+
{[%emt 0:00:20]} Kxg5 {[%emt 0:00:03] [#] Threatens to win with ...Kh4. K3P-K3P
} 40. Kf3 $1 {[%emt 0:00:06]} Kh4 {[%emt 0:01:31]} 41. Kg2 {[%emt 0:30:06]} b5
{[%emt 0:01:56]} 42. b4 {[%emt 0:00:00]} Kg5 {[%emt 0:06:17] ( -> ...Kf4)} 43.
Kg3 {[%emt 0:00:00]} Kf5 {[%emt 0:03:00]} 44. Kh4 {[%emt 0:00:00]} Kg6 {
[%emt 0:00:19]} 45. Kg3 {[%emt 0:00:00]} Kg5 {[%emt 0:00:21]} 46. Kf3 {[%emt 0:
00:00]} Kf5 {[%emt 0:00:07]} (46... Kh4 $5 47. Kg2 a6 $11) 47. Kg3 {[%emt 0:00:
00]} Kg5 {[%emt 0:02:44]} 48. Kf3 {[%emt 0:00:00]} Kh4 {[%emt 0:04:47]} 49. Kg2
{[%emt 0:00:00]} a6 {[%emt 0:01:35]} 50. Kh2 {[%emt 0:00:00]} Kg5 {[%emt 0:00:
06]} 51. Kg3 {[%emt 0:00:00]} h4+ {[%emt 0:00:00]} 52. Kf3 {[%emt 0:00:00]} Kf5
{[%emt 0:00:05]} 53. Ke3 {[%emt 0:00:00]} Ke5 {[%emt 0:00:05]} 54. Kf3 $1 {
[%emt 0:00:00] White threatens Kg4 and mate.} Kf5 {[%emt 0:01:10]} 55. Ke3 {
[%emt 0:00:00]} Ke5 {[%emt 0:00:12]} 56. Kf3 $1 {[%emt 0:00:00] Threatening
mate with Kg4.} Kf5 {[%emt 0:00:54] An even fight not without its subleties.
Weighted Error Value: White=0.02 (flawless) / Black=0.01 (flawless)} 1/2-1/2